fUSD/lending_fUSD_20251105
["ID","MTS","AMOUNT","RATE_DAILY","PERIOD"]
[393248264,1762383040810,-3095.072,0.00017834,2]
[393248265,1762383040819,-559.0,0.00017834,2]
[393248266,1762383040829,-2141.0,0.00017834,2]
[393248267,1762383040838,-500.0,0.00017856,2]
[393248268,1762383040848,-200.0,0.00017856,2]
[393248269,1762383040857,-517.0,0.00017866,2]
[393248270,1762383040866,-517.0,0.00017867,2]
[393248271,1762383040875,-517.0,0.00017877,2]
[393248272,1762383040884,-2500.0,0.00017882,3]
[393248273,1762383040895,-2500.0,0.00017891,3]
[393248274,1762383040904,-5000.0,0.00017899,2]
[393248275,1762383040913,-2500.0,0.000179,3]
[393248276,1762383040923,-2500.0,0.000179,3]
[393248277,1762383040932,-477.76462643,0.000179,3]
[393248278,1762383040942,-1156.46012116,0.000179,2]
[393248279,1762383041499,-472.89311236,0.000179,2]
[393248280,1762383041508,-168.24423305,0.000179,2]
[393248281,1762383041517,-299.04587584,0.00017904,2]
[393248282,1762383041526,-151.13904288,0.00017904,2]
[393248283,1762383041535,-194.70569801,0.00017904,2]
[393248284,1762383041544,-150.0,0.00017904,2]
[393248285,1762383041560,-150.0,0.00017904,2]
[393248286,1762383041571,-150.0,0.00017904,2]
[393248287,1762383041581,-150.0,0.00017904,2]
[393248288,1762383041590,-150.0,0.00017904,2]
[393248289,1762383041599,-500.0,0.00017904,2]
[393248290,1762383041609,-150.0,0.00017904,2]
[393248291,1762383041619,-150.0,0.00017904,2]
[393248292,1762383041628,-200.0,0.00017904,2]
[393248293,1762383041637,-150.0,0.00017904,2]
[393248294,1762383041647,-150.0,0.00017904,2]
[393248295,1762383041656,-399.1988,0.0001793,2]
[393248296,1762383041665,-578.93,0.00017945,2]
[393248297,1762383041675,-208.16798688,0.00017959,2]
[393248298,1762383041684,-500.0,0.00017973,2]
[393248299,1762383041693,-500.0,0.00017973,2]
[393248300,1762383041702,-500.0,0.00017973,2]
[393248301,1762383041711,-500.0,0.00017973,2]
[393248302,1762383041721,-585.02702278,0.00017973,2]
[393248303,1762383041731,-500.0,0.00017973,2]
[393248304,1762383041740,-500.0,0.00017973,2]
[393248305,1762383041749,-500.0,0.00017973,2]
[393248306,1762383041758,-73.75373324,0.00017973,2]
[393248307,1762383041770,-426.24626676,0.00017973,2]
[393248308,1762383041780,-500.0,0.00017973,2]
[393248309,1762383041789,-1425.0,0.00017984,2]
[393248310,1762383041799,-264.28427982,0.00017989,2]
[393248311,1762383041808,-253.76838782,0.00017989,2]
[393248312,1762383041818,-150.0,0.00017989,2]
[393248313,1762383041828,-281.57003939,0.0001799,2]
[393248314,1762383041837,-281.57003939,0.0001799,2]
[393248315,1762383041847,-281.57003939,0.0001799,2]
[393248316,1762383041856,-695.29,0.0001799,2]
[393248317,1762383041868,-549.09,0.0001799,2]
[393248318,1762383041877,-549.09,0.0001799,2]
[393248319,1762383041887,-549.09,0.0001799,2]
[393248320,1762383041896,-549.09,0.0001799,2]
[393248321,1762383041906,-549.09,0.0001799,2]
[393248322,1762383041916,-549.09,0.0001799,2]
[393248323,1762383041925,-549.09,0.0001799,2]
[393248324,1762383041938,-544.28974216,0.0001799,2]
[393248325,1762383041950,-4.80025784,0.0001799,2]
[393248326,1762383041960,-549.09,0.0001799,2]
[393248327,1762383041969,-1098.18,0.0001799,2]
[393248328,1762383041979,-1098.18,0.0001799,2]
[393248329,1762383041988,-1098.18,0.0001799,2]
[393248330,1762383041998,-549.09,0.0001799,2]
[393248331,1762383042007,-4546.26360678,0.00017999,2]
[393248332,1762383042019,-1561.38680942,0.00017999,2]
[393248333,1762383042029,-7516.1618521,0.00017999,7]
[393248334,1762383042042,-8943.84023489,0.00017999,7]
[393248335,1762383042058,-2370.35193679,0.00017999,7]
[393248342,1762383043191,-36.96920979,0.00017999,7]
[393248343,1762383043363,-4057.75000025,0.00017999,7]
[393248356,1762383046059,-195.98149102,0.000179,2]
[393248357,1762383046069,-3563.18312898,0.00017999,7]
[393248358,1762383047612,-8833.37326065,0.00017999,7]
[393248359,1762383047623,-42831.42949838,0.00017999,7]
[393248360,1762383047634,-6769.25960396,0.00017999,7]
[393248361,1762383047646,-9663.02253193,0.00017999,7]
[393248362,1762383047654,-477.45087779,0.00017999,7]
[393248363,1762383047664,-300.0,0.00017999,2]
[393248364,1762383047673,-300.0,0.00017999,2]
[393248365,1762383047683,-300.0,0.00017999,2]
[393248366,1762383047692,-666.0,0.00017999,2]
[393248367,1762383047702,-300.0,0.00017999,2]
[393248368,1762383047711,-3417.0,0.00018,2]
[393248369,1762383047721,-5151.45933194,0.00018,2]
[393248370,1762383047730,-129790.52324839,0.00018,2]
[393248371,1762383068903,151.0,0.00015761,2]
[393248372,1762383121501,500.0,0.00015498,2]
[393248373,1762383126370,9349.01,0.00015399,2]
[393248374,1762383126397,10000.01,0.00015399,2]
[393248375,1762383126426,10000.01,0.00015399,2]
[393248376,1762383126451,10000.01,0.00015399,2]
[393248377,1762383126477,10000.01,0.00015399,2]
[393248378,1762383126502,10000.01,0.00015399,2]
[393248379,1762383126529,10000.01,0.00015399,2]
[393248380,1762383126555,10000.01,0.00015399,2]
[393248381,1762383126580,10000.01,0.00015399,2]
[393248382,1762383126606,10000.01,0.00015399,2]
[393248383,1762383127826,-301.99999983,0.00015399,2]
[393248384,1762383134267,-151.0,0.00015399,2]
[393248385,1762383136496,-151.0,0.00015399,2]
[393248386,1762383139736,1647.837935,0.00015321,2]
[393248387,1762383152426,-151.0,0.00015399,2]
[393248388,1762383154018,210.02123934,0.00015398,2]
[393248389,1762383154050,151.79074679,0.00015398,2]
[393248390,1762383154088,500.0,0.00015398,2]
[393248391,1762383155256,248.9797902,0.00015398,2]
[393248392,1762383157181,-250.0,0.00015399,2]
[393248393,1762383160347,-252.5476077,0.00015399,2]
[393248394,1762383164690,-298.79588033,0.00015399,2]
[393248395,1762383166339,-329.06943374,0.00015399,2]
[393248396,1762383182440,-290.94948306,0.00015399,2]
[393248397,1762383184682,-217.64402199,0.00015399,2]
[393248398,1762383191089,-162.33706121,0.00015399,2]
[393248399,1762383192633,-169.79374576,0.00015399,2]
[393248400,1762383197234,-168.41248198,0.00015399,2]
[393248401,1762383201019,-413.94464167,0.00015399,2]
[393248402,1762383203221,-455.90035702,0.00015399,2]
[393248403,1762383205628,-500.00000017,0.00015399,2]
[393248404,1762383208363,-227.69981362,0.00015399,2]
[393248405,1762383210452,-357.29018638,0.00015399,2]
[393248406,1762383227970,-166.66,0.00015399,2]
[393248407,1762383230069,-277.57161146,0.00015399,2]
[393248408,1762383231667,-195.0,0.00015399,2]
[393248409,1762383233788,-248.77921967,0.00015399,2]
[393248410,1762383236750,-153.15175631,0.00015399,2]
[393248411,1762383240541,-151.0,0.00015399,2]
[393248412,1762383245780,-200.0,0.00015399,2]
[393248413,1762383245903,151.02,8.692e-05,2]
[393248414,1762383246119,151.02,9.736e-05,2]
[393248415,1762383246324,151.02,0.0001078,2]
[393248416,1762383246527,151.02,0.00011823,2]
[393248417,1762383246861,151.02,0.00012867,2]
[393248418,1762383247118,151.02,0.00013911,2]
[393248419,1762383247338,151.02,0.00014955,2]
[393248420,1762383247442,-237.20277449,0.00015399,2]
[393248421,1762383301235,1200.0,0.00015398,2]
[393248422,1762383301265,300.0,0.00015398,2]
[393248423,1762383302780,300.0,0.00015398,2]
[393248424,1762383422649,300.0,0.00015398,2]
[393248425,1762383467925,-160.0,0.00015399,2]
[393248426,1762383467948,-107.09405674,0.00015399,2]
[393248427,1762383470680,-196.53857446,0.00015399,2]
[393248428,1762383470706,-17.58333868,0.00015399,2]
[393248429,1762383472400,-423.30043113,0.00015399,2]
[393248430,1762383473938,-295.35787737,0.00015399,2]
[393248431,1762383476070,-154.60602524,0.00015399,2]
[393248432,1762383478345,-203.28221121,0.00015399,2]
[393248433,1762383478783,4084.24028867,0.00015299,2]
[393248434,1762383478807,792.98906616,0.00015299,2]
[393248435,1762383481035,-228.23215969,0.00015399,2]
[393248436,1762383481241,300.0,0.00015398,2]
[393248437,1762383496990,151.0,0.00015392,2]
[393248438,1762383497411,-245.19988057,0.00015399,2]
[393248439,1762383500065,-306.59855743,0.00015399,2]
[393248440,1762383502095,-189.1754101,0.00015399,2]
[393248441,1762383506145,-180.66646979,0.00015399,2]
[393248442,1762383507953,-714.95118186,0.00015399,2]
[393248443,1762383513102,151.0,0.00015379,2]
[393248444,1762383530279,151.0,0.00015369,2]
[393248445,1762383539787,165.05622774,0.00015299,2]
[393248446,1762383541272,300.0,0.00015398,2]
[393248447,1762383547848,151.0,0.00015368,2]
[393248448,1762383565202,151.0,0.00015374,2]
[393248449,1762383581621,151.0,0.00015378,2]
[393248473,1762383738411,-311213.19638054,0.00015399,2]
[393248474,1762383738435,-1000.0,0.00015399,2]
[393248475,1762383738456,-229.34279301,0.00015399,2]
[393248476,1762383738478,-500.0,0.00015399,2]
[393248477,1762383738499,-500.0,0.00015399,2]
[393248478,1762383738525,-151.0,0.00015399,2]
[393248479,1762383738548,-4877.22935476,0.00015588,2]
[393248480,1762383738573,-4877.22935476,0.00015877,2]
[393248481,1762383738596,-151.02,0.00015999,2]
[393248482,1762383738618,-166.66,0.0001607,2]
[393248483,1762383738640,-1100.0,0.00016082,2]
[393248484,1762383738663,-4877.22935476,0.00016166,2]
[393248485,1762383738684,-500.0,0.00016356,2]
[393248486,1762383738706,-900.0,0.00016356,2]
[393248487,1762383738730,-166.66,0.00016409,2]
[393248488,1762383738753,-4877.22935476,0.00016455,2]
[393248489,1762383738775,-150.0,0.00016466,2]
[393248490,1762383738797,-634.09,0.00016502,2]
[393248491,1762383738818,-999.0,0.00016586,3]
[393248492,1762383738840,-3257.18965667,0.00016644,2]
[393248493,1762383738863,-4877.22935476,0.00016744,2]
[393248494,1762383738886,-166.66,0.00016747,2]
[393248495,1762383738908,-3257.18965667,0.00016784,2]
[393248496,1762383738932,-3257.18965667,0.00016923,2]
[393248497,1762383738954,-195.0,0.00016939,2]
[393248498,1762383738975,-260.23885041,0.00016939,2]
[393248499,1762383738997,-300.0,0.00016939,2]
[393248500,1762383739021,-300.0,0.00016939,2]
[393248501,1762383739042,-300.0,0.00016939,2]
[393248502,1762383739064,-300.0,0.00016939,2]
[393248503,1762383739086,-300.0,0.00016939,2]
[393248504,1762383739109,-4877.22935476,0.00017033,2]
[393248505,1762383739132,-151.02,0.00017043,2]
[393248506,1762383739155,-3257.18965667,0.00017063,2]
[393248507,1762383739178,-166.66,0.00017085,2]
[393248508,1762383739199,-549.09,0.00017178,2]
[393248509,1762383739224,-3257.18965667,0.00017202,2]
[393248510,1762383739248,-4877.22935476,0.00017322,2]
[393248511,1762383739272,-3257.18965667,0.00017342,2]
[393248512,1762383739296,-166.66,0.00017424,2]
[393248513,1762383739318,-1100.0,0.00017452,2]
[393248514,1762383739342,-344.0,0.00017479,2]
[393248515,1762383739365,-3257.18965667,0.00017481,2]
[393248516,1762383739389,-1548.0,0.0001751,2]
[393248517,1762383739414,-344.0,0.00017522,2]
[393248518,1762383739438,-1548.0,0.00017581,2]
[393248519,1762383739460,-7985.70399434,0.000176,2]
[393248520,1762383739483,-344.0,0.0001761,2]
[393248521,1762383739506,-4877.22935476,0.00017611,2]
[393248522,1762383739532,-3257.18965667,0.00017621,2]
[393248523,1762383739555,-893.58488772,0.00017631,2]
[393248524,1762383739578,-1548.0,0.00017643,2]
[393248525,1762383739604,-344.0,0.0001765,2]
[393248526,1762383739626,-162.50988356,0.00017703,2]
[393248527,1762383739648,-900.0,0.00017726,2]
[393248528,1762383739673,-344.0,0.00017734,2]
[393248529,1762383739696,-3257.18965667,0.0001776,2]
[393248530,1762383739718,-166.66,0.00017762,2]
[393248531,1762383739740,-221.75791629,0.0001777,2]
[393248532,1762383739763,-1548.0,0.00017807,2]
[393248533,1762383739932,-1548.0,0.00017808,2]
[393248534,1762383739967,-162.717,0.00017808,2]
[393248535,1762383739991,-344.0,0.00017816,2]
[393248536,1762383740012,-2584.841,0.00017819,2]
[393248537,1762383740034,-150.0,0.00017834,2]
[393248538,1762383740055,-150.0,0.00017834,2]
[393248539,1762383740076,-150.0,0.00017834,2]
[393248540,1762383740096,-1595.0,0.00017834,2]
[393248541,1762383740117,-820.0,0.00017834,2]
[393248542,1762383740138,-2141.0,0.00017834,2]
[393248543,1762383740160,-1272.0,0.00017834,2]
[393248544,1762383740185,-812.0,0.00017834,2]
[393248545,1762383740207,-905.0,0.00017834,2]
[393248546,1762383740228,-1188.0,0.00017834,2]
[393248547,1762383740250,-500.0,0.00017856,2]
[393248548,1762383740272,-200.0,0.00017856,2]
[393248549,1762383740295,-5000.0,0.00017899,2]
[393248550,1762383740317,-150.99,0.00017899,2]
[393248551,1762383740340,-1062.89980978,0.000179,3]
[393248552,1762383740364,-4877.22935476,0.000179,2]
[393248553,1762383740386,-293.97223654,0.000179,2]
[393248554,1762383740408,-3257.18965667,0.000179,2]
[393248555,1762383740432,-500.0,0.00017973,2]
[393248556,1762383740454,-500.0,0.00017973,2]
[393248557,1762383740475,-500.0,0.00017973,2]
[393248558,1762383740497,-150.0,0.00017989,2]
[393248559,1762383740523,-500.0,0.00017989,2]
[393248560,1762383740546,-1097.74,0.0001799,2]
[393248561,1762383740569,-549.09,0.0001799,2]
[393248562,1762383740593,-549.09,0.0001799,2]
[393248563,1762383740614,-549.09,0.0001799,2]
[393248564,1762383740636,-549.09,0.0001799,2]
[393248565,1762383740657,-549.09,0.0001799,2]
[393248566,1762383740683,-549.09,0.0001799,2]
[393248567,1762383740704,-549.09,0.0001799,2]
[393248568,1762383740727,-230572.5,0.00017999,2]
[393248569,1762383740752,-300.0,0.00017999,2]
[393248570,1762383740775,-2334.0,0.00018,2]
[393248571,1762383740798,-61346.23448827,0.00018,2]
[393248572,1762383741640,151.0,0.00015399,2]
[393248573,1762383741936,151.0,0.00015399,2]
[393248574,1762383741983,174.63967314,0.00015399,2]
[393248575,1762383756110,-151.0,0.00015399,2]
[393248576,1762383756140,-151.0,0.00015399,2]
[393248577,1762383756168,-151.0,0.00015399,2]
[393248578,1762383756199,-151.0,0.00015399,2]
[393248579,1762383756227,-151.0,0.00015399,2]
[393248580,1762383756255,-151.0,0.00015399,2]
[393248581,1762383756283,-151.0,0.00015399,2]
[393248582,1762383756311,-151.0,0.00015399,2]
[393248583,1762383756339,-151.0,0.00015399,2]
[393248584,1762383758947,500.0,0.00015398,2]
[393248585,1762383780854,10000.01,0.00015299,2]
[393248586,1762383780880,10000.01,0.00015299,2]
[393248587,1762383780903,10000.01,0.00015299,2]
[393248588,1762383780928,10000.01,0.00015299,2]
[393248589,1762383780951,10000.01,0.00015299,2]
[393248590,1762383780978,10000.01,0.00015299,2]
[393248591,1762383781001,10000.01,0.00015299,2]
[393248592,1762383781023,10000.01,0.00015299,2]
[393248593,1762383781047,10000.01,0.00015299,2]
[393248594,1762383781069,10000.01,0.00015299,2]
[393248595,1762383781619,-151.0,0.00015299,2]
[393248596,1762383787410,-195.0,0.00015299,2]
[393248597,1762383790132,-154.99474791,0.00015299,2]
[393248598,1762383792405,-426.63046673,0.00015299,2]
[393248599,1762383797102,-160.19533334,0.00015299,2]
[393248600,1762383799256,-359.66408919,0.00015299,2]
[393248601,1762383802280,-287.35163607,0.00015299,2]
[393248602,1762383805177,-183.38462195,0.00015299,2]
[393248603,1762383806829,-173.36051182,0.00015299,2]
[393248604,1762383809610,-178.8903808,0.00015299,2]
[393248605,1762383812366,-322.97637123,0.00015299,2]
[393248606,1762383813972,-260.09035706,0.00015299,2]
[393248607,1762383816346,-245.18781316,0.00015299,2]
[393248608,1762383820577,-271.48907211,0.00015299,2]
[393248609,1762383822725,-215.12877233,0.00015299,2]
[393248610,1762383824354,-495.6205316,0.00015299,2]
[393248611,1762383843045,-323.54773269,0.00015299,2]
[393248615,1762383845233,-280.20155479,0.00015299,2]
[393248616,1762383847362,-382.91066903,0.00015299,2]
[393248617,1762383852579,-165.60028277,0.00015299,2]
[393248618,1762383855481,-246.59656865,0.00015299,2]
[393248619,1762383857692,-290.86586111,0.00015299,2]
[393248620,1762383860711,-182.92101406,0.00015299,2]
[393248621,1762383862437,-509.17690153,0.00015299,2]
[393248622,1762383864613,-180.86365927,0.00015299,2]
[393248623,1762383868764,-270.04138186,0.00015299,2]
[393248624,1762383871901,456.25352275,0.00015298,2]
[393248625,1762383902927,1200.0,0.00015298,2]
[393248626,1762383903123,300.0,0.00015298,2]
[393248627,1762383944332,322.58033008,0.00015199,2]
[393248628,1762384022409,158.12160979,0.00015199,2]
[393248629,1762384061486,211.0,0.00015298,2]
[393248630,1762384159098,-1801.99535063,0.00015299,2]
[393248631,1762384164142,1212.3,0.00015299,2]
[393248632,1762384181197,-2722.70924348,0.00015299,2]
[393248633,1762384181298,-10000.01,0.00015299,2]
[393248634,1762384181454,-10000.01,0.00015299,2]
[393248635,1762384181576,-10000.01,0.00015299,2]
[393248636,1762384181749,-10000.01,0.00015299,2]
[393248637,1762384181872,-10000.01,0.00015299,2]
[393248638,1762384182007,-10000.01,0.00015299,2]
[393248639,1762384182144,-10000.01,0.00015299,2]
[393248640,1762384182252,-10000.01,0.00015299,2]
[393248641,1762384184040,-10000.01,0.00015299,2]
[393248642,1762384193236,-500.0,0.00015298,2]
[393248643,1762384193271,-486.60131354,0.00015298,2]
[393248644,1762384201559,1200.0,0.00015298,2]
[393248645,1762384202496,300.0,0.00015298,2]
[393248646,1762384203372,300.0,0.00015298,2]
[393248647,1762384213157,175.34,0.00013228,2]
[393248648,1762384217543,151.0,0.00015296,2]
[393248649,1762384219877,2128.2976,0.00015199,2]
[393248650,1762384224512,3772.16977292,0.00015222,2]
[393248651,1762384224537,289.25412508,0.00015222,2]
[393248653,1762384232106,-649.19577694,0.00015299,2]
[393248654,1762384232118,-2082.21772877,0.00015299,2]
[393248655,1762384232130,-393.56024574,0.00015299,2]
[393248682,1762384233004,-4166.7664716,0.00015299,2]
[393248693,1762384237995,-2269.23766179,0.00015299,2]
[393248694,1762384238007,-1850.9311271,0.00015299,2]
[393248695,1762384238018,-780.00000001,0.00015299,2]
[393248696,1762384238030,-451.15504761,0.00015299,2]
[393248697,1762384238041,-1453.43541747,0.00015299,2]
[393248698,1762384238129,-321.19260009,0.00015299,2]
[393248699,1762384238144,-5729.75746816,0.00015299,2]
[393248700,1762384238156,-812.63887914,0.00015299,2]
[393248701,1762384238168,-17454.63064683,0.00015299,2]
[393248702,1762384240722,-1.7e-07,0.00015299,2]
[393248703,1762384240734,-180146.69600341,0.00015299,2]
[393248704,1762384240744,-1000.0,0.00015299,2]
[393248705,1762384240753,-4067.1465,0.00015299,2]
[393248706,1762384240763,-12323.962,0.00015299,2]
[393248707,1762384240773,-195.0,0.00015348,2]
[393248708,1762384240782,-163.71623282,0.00015398,2]
[393248709,1762384240792,-151.0,0.00015473,2]
[393248710,1762384240802,-195.0,0.00015494,2]
[393248711,1762384240812,-322.58032999,0.00015499,2]
[393248712,1762384240821,-322.58032999,0.00015799,2]
[393248713,1762384240831,-500.0,0.000159,2]
[393248714,1762384240840,-500.0,0.000159,2]
[393248715,1762384240855,-404.77706377,0.000159,2]
[393248716,1762384240864,-621.64123478,0.000159,2]
[393248717,1762384240877,-500.97625752,0.000159,2]
[393248718,1762384240887,-500.0,0.000159,2]
[393248719,1762384240897,-1000.0,0.00016082,2]
[393248720,1762384240908,-322.58032999,0.00016099,2]
[393248721,1762384240918,-500.0,0.00016356,2]
[393248722,1762384240927,-800.0,0.00016356,2]
[393248723,1762384240937,-322.58032999,0.00016399,2]
[393248724,1762384240947,-464.19728136,0.00016448,2]
[393248725,1762384240957,-500.0,0.00016448,2]
[393248726,1762384240967,-351.38330453,0.00016491,2]
[393248727,1762384240976,-152.0,0.00016491,2]
[393248728,1762384240987,-152.0,0.00016491,2]
[393248729,1762384240997,-152.0,0.00016491,2]
[393248730,1762384241007,-185.67673569,0.00016491,2]
[393248731,1762384241017,-152.0,0.00016491,2]
[393248732,1762384241027,-826.0,0.00016491,2]
[393248733,1762384241037,-152.0,0.00016491,2]
[393248734,1762384241047,-152.0,0.00016491,2]
[393248735,1762384241058,-153.0,0.00016491,2]
[393248736,1762384241068,-152.0,0.00016491,2]
[393248737,1762384241078,-152.0,0.00016491,2]
[393248738,1762384241088,-153.0,0.00016491,2]
[393248739,1762384241098,-275.11631403,0.00016491,2]
[393248740,1762384241108,-164.9,0.00016491,2]
[393248741,1762384241118,-152.0,0.00016491,2]
[393248742,1762384241127,-826.0,0.00016491,2]
[393248743,1762384241137,-826.0,0.00016491,2]
[393248744,1762384241148,-826.0,0.00016491,2]
[393248745,1762384241157,-826.0,0.00016491,2]
[393248746,1762384241167,-826.0,0.00016491,2]
[393248747,1762384241176,-311.30410463,0.00016491,2]
[393248748,1762384241186,-1003.13,0.00016491,2]
[393248749,1762384241195,-175.34,0.00016535,2]
[393248750,1762384241206,-200.0,0.00016541,2]
[393248751,1762384241215,-158.12160979,0.0001655,2]
[393248752,1762384241225,-322.58032999,0.000167,2]
[393248753,1762384241235,-420.0,0.00016738,2]
[393248754,1762384241245,-1003.13,0.00016765,2]
[393248755,1762384241255,-1680.0,0.00016822,2]
[393248756,1762384241269,-1000.0,0.00016825,2]
[393248757,1762384241280,-250.0,0.00016829,2]
[393248758,1762384241291,-300.0,0.00016829,2]
[393248759,1762384241301,-195.0,0.00016829,2]
[393248760,1762384241312,-500.0,0.00016959,2]
[393248761,1762384241324,-322.58032999,0.00017,2]
[393248762,1762384241336,-1003.13,0.00017039,2]
[393248763,1762384241349,-549.09,0.00017178,2]
[393248764,1762384241363,-168.0,0.00017191,2]
[393248765,1762384241375,-322.58032999,0.000173,2]
[393248766,1762384241388,-1003.13,0.00017313,2]
[393248767,1762384241399,-1000.0,0.00017452,2]
[393248768,1762384241412,-253.31699392,0.00017522,2]
[393248769,1762384241422,-1137.78330361,0.00017585,2]
[393248770,1762384241434,-1003.13,0.00017587,2]
[393248771,1762384241446,-322.58032999,0.000176,2]
[393248772,1762384241457,-1000.0,0.00017619,2]
[393248773,1762384241467,-1137.78330354,0.0001762,2]
[393248774,1762384241478,-1000.0,0.00017629,2]
[393248775,1762384241486,-1000.0,0.00017655,2]
[393248776,1762384241497,-1137.78330354,0.00017655,2]
[393248777,1762384241507,-221.75791629,0.00017675,2]
[393248778,1762384241517,-1000.0,0.00017679,2]
[393248779,1762384241527,-162.50988356,0.00017685,2]
[393248780,1762384241537,-1000.0,0.0001769,2]
[393248781,1762384241547,-1137.78330354,0.0001769,2]
[393248782,1762384241558,-1137.78330354,0.00017725,2]
[393248783,1762384241568,-800.0,0.00017726,2]
[393248784,1762384241578,-1000.0,0.00017738,2]
[393248785,1762384241588,-1000.0,0.00017748,2]
[393248786,1762384241598,-893.58488772,0.00017752,2]
[393248787,1762384241610,-1000.0,0.00017753,2]
[393248788,1762384241620,-1137.78330354,0.0001776,2]
[393248789,1762384241630,-150.0,0.00017771,2]
[393248790,1762384241640,-376.422955,0.00017777,3]
[393248791,1762384241650,-366.982191,0.00017777,3]
[393248792,1762384241660,-1137.78330354,0.00017795,2]
[393248793,1762384241670,-1000.0,0.00017806,2]
[393248794,1762384241682,-924.96152339,0.0001781,2]
[393248795,1762384241694,-1425.0,0.00017813,2]
[393248796,1762384241709,-150.0,0.0001782,2]
[393248797,1762384241720,-150.0,0.0001782,2]
[393248798,1762384241731,-150.0,0.0001782,2]
[393248799,1762384241741,-214.57196,0.0001782,2]
[393248800,1762384241751,-39944.35351664,0.0001783,2]
[393248801,1762384241761,-1137.78330354,0.0001783,2]
[393248802,1762384241772,-500.0,0.00017856,2]
[393248803,1762384241783,-200.0,0.00017856,2]
[393248804,1762384241793,-1003.13,0.00017861,2]
[393248805,1762384241804,-150.0,0.00017865,2]
[393248806,1762384241815,-1137.78330354,0.00017865,2]
[393248807,1762384241828,-150.0,0.00017875,2]
[393248808,1762384241840,-5000.0,0.00017899,2]
[393248809,1762384241851,-322.58032999,0.000179,2]
[393248810,1762384241862,-158.12160979,0.000179,2]
[393248811,1762384241873,-1137.78330354,0.000179,2]
[393248812,1762384241884,-1062.89980978,0.000179,3]
[393248813,1762384241895,-1845.0,0.000179,2]
[393248814,1762384241906,-18694.55391251,0.000179,2]
[393248815,1762384241916,-620.6246043,0.000179,2]
[393248816,1762384241926,-1425.0,0.0001793,2]
[393248817,1762384241938,-214.57196,0.0001793,2]
[393248818,1762384241949,-1666.8830243,0.00017967,2]
[393248819,1762384241960,-500.0,0.00017973,2]
[393248820,1762384241970,-500.0,0.00017973,2]
[393248821,1762384241981,-500.0,0.00017973,2]
[393248822,1762384241991,-500.0,0.00017973,2]
[393248823,1762384242002,-516.00653523,0.00017973,2]
[393248824,1762384242012,-500.0,0.00017973,2]
[393248825,1762384242023,-500.0,0.00017973,2]
[393248826,1762384242207,-500.0,0.00017973,2]
[393248827,1762384242217,-500.0,0.00017973,2]
[393248828,1762384242227,-359.52575001,0.00017973,2]
[393248829,1762384242237,-500.0,0.00017973,2]
[393248830,1762384242247,-500.0,0.00017973,2]
[393248831,1762384242258,-500.0,0.00017973,2]
[393248832,1762384242268,-500.0,0.00017973,2]
[393248833,1762384242280,-500.0,0.00017973,2]
[393248834,1762384242291,-211.11369051,0.0001799,2]
[393248835,1762384242301,-549.09,0.0001799,2]
[393248836,1762384242312,-549.09,0.0001799,2]
[393248837,1762384242322,-549.09,0.0001799,2]
[393248838,1762384242333,-549.09,0.0001799,2]
[393248839,1762384242343,-549.09,0.0001799,2]
[393248840,1762384242354,-549.09,0.0001799,2]
[393248841,1762384242364,-549.09,0.0001799,2]
[393248842,1762384242375,-549.09,0.0001799,2]
[393248843,1762384242386,-549.09,0.0001799,2]
[393248844,1762384242396,-153.177083,0.00017992,4]